[Event "*** SCC Grand Prix: Titled Tuesday Blitz"]
[Site "Chess.com"]
[Date "2020.08.25"]
[Round "8"]
[White "Schandenfreude"]
[Black "tteshan"]
[Result "0-1"]
[WhiteElo "2493"]
[BlackElo "2372"]
[TimeControl "180+1"]
[EndTime "11:36:43 PDT"]
[Termination "tteshan won on time"]

1. Nf3 {[%clk 0:03:00.9]} 1... c5 {[%clk 0:02:51.9]} 2. c4 {[%clk 0:02:59.4]}
2... Nc6 {[%clk 0:02:52.3]} 3. g3 {[%clk 0:02:55.4]} 3... g6 {[%clk 0:02:52.7]}
4. Bg2 {[%clk 0:02:55.4]} 4... Bg7 {[%clk 0:02:52.9]} 5. O-O {[%clk 0:02:56]}
5... e6 {[%clk 0:02:53.2]} 6. e3 {[%clk 0:02:53.3]} 6... Nge7 {[%clk 0:02:49.1]}
7. d4 {[%clk 0:02:53.4]} 7... cxd4 {[%clk 0:02:46.6]} 8. Nxd4 {[%clk 0:02:54.3]}
8... Nxd4 {[%clk 0:02:44.8]} 9. exd4 {[%clk 0:02:54.3]} 9... d5 {[%clk
0:02:45.3]} 10. cxd5 {[%clk 0:02:51.1]} 10... Nxd5 {[%clk 0:02:45.4]} 11. Nc3
{[%clk 0:02:51]} 11... O-O {[%clk 0:02:25.4]} 12. Qb3 {[%clk 0:02:32.4]} 12...
Nb6 {[%clk 0:02:15.8]} 13. Rd1 {[%clk 0:02:27.1]} 13... Qe7 {[%clk 0:01:48.4]}
14. h4 {[%clk 0:02:16.5]} 14... h6 {[%clk 0:01:40.1]} 15. Be3 {[%clk 0:02:03.9]}
15... Rd8 {[%clk 0:01:37.2]} 16. Rac1 {[%clk 0:02:02.1]} 16... Bd7 {[%clk
0:01:00.1]} 17. d5 {[%clk 0:01:11]} 17... exd5 {[%clk 0:00:58.4]} 18. Re1 {[%clk
0:00:52.1]} 18... Be6 {[%clk 0:00:33.3]} 19. Bxb6 {[%clk 0:00:42.8]} 19... axb6
{[%clk 0:00:33.3]} 20. Qxb6 {[%clk 0:00:40.3]} 20... Qd7 {[%clk 0:00:28.9]} 21.
a3 {[%clk 0:00:22.1]} 21... Rdc8 {[%clk 0:00:23.6]} 22. Rcd1 {[%clk 0:00:18.3]}
22... Bxc3 {[%clk 0:00:21.9]} 23. bxc3 {[%clk 0:00:17.4]} 23... Rxc3 {[%clk
0:00:21.9]} 24. h5 {[%clk 0:00:16.2]} 24... g5 {[%clk 0:00:20.1]} 25. Qd4 {[%clk
0:00:14.6]} 25... Raxa3 {[%clk 0:00:19.4]} 26. Qf6 {[%clk 0:00:13.6]} 26... Rc8
{[%clk 0:00:16.1]} 27. Qxh6 {[%clk 0:00:13.6]} 27... g4 {[%clk 0:00:07.5]} 28.
Qg5+ {[%clk 0:00:10.4]} 28... Kh7 {[%clk 0:00:05.1]} 29. Be4+ {[%clk 0:00:08.8]}
29... f5 {[%clk 0:00:05.2]} 30. Qg6+ {[%clk 0:00:03.7]} 30... Kh8 {[%clk
0:00:05.1]} 31. Qf6+ {[%clk 0:00:03.4]} 31... Kg8 {[%clk 0:00:02.9]} 32. Qg6+
{[%clk 0:00:02.9]} 32... Kh8 {[%clk 0:00:02.9]} 33. Qh6+ {[%clk 0:00:02.7]}
33... Kg8 {[%clk 0:00:02.5]} 34. Bg2 {[%clk 0:00:02.8]} 34... Qf7 {[%clk
0:00:01.9]} 35. Qxe6 {[%clk 0:00:02.7]} 35... Qxe6 {[%clk 0:00:01.3]} 36. Rxe6
{[%clk 0:00:02.9]} 36... d4 {[%clk 0:00:02]} 0-1

[Event "*** SCC Grand Prix: Titled Tuesday Blitz"]
[Site "Chess.com"]
[Date "2020.08.25"]
[Round "8"]
[White "zmeeed67"]
[Black "chesstatour"]
[Result "0-1"]
[WhiteElo "2403"]
[BlackElo "1944"]
[TimeControl "180+1"]
[EndTime "11:36:46 PDT"]
[Termination "chesstatour won on time"]

1. e4 {[%clk 0:03:00.9]} 1... c6 {[%clk 0:02:54.6]} 2. d4 {[%clk 0:03:00.1]}
2... d5 {[%clk 0:02:55.5]} 3. e5 {[%clk 0:03:00.3]} 3... c5 {[%clk 0:02:55.3]}
4. c4 {[%clk 0:02:59.9]} 4... cxd4 {[%clk 0:02:51]} 5. Qxd4 {[%clk 0:02:59.1]}
5... Nc6 {[%clk 0:02:47.8]} 6. Qxd5 {[%clk 0:02:58.6]} 6... Qxd5 {[%clk
0:02:48]} 7. cxd5 {[%clk 0:02:58.7]} 7... Nxe5 {[%clk 0:02:48.7]} 8. Bf4 {[%clk
0:02:51.6]} 8... Nd7 {[%clk 0:02:42]} 9. Nc3 {[%clk 0:02:47.4]} 9... a6 {[%clk
0:02:34.9]} 10. Nf3 {[%clk 0:02:46.4]} 10... g6 {[%clk 0:02:32.1]} 11. a4 {[%clk
0:02:06.5]} 11... Bg7 {[%clk 0:02:27.2]} 12. a5 {[%clk 0:02:06.6]} 12... Ngf6
{[%clk 0:02:14.9]} 13. h3 {[%clk 0:02:02.4]} 13... O-O {[%clk 0:02:08.6]} 14.
Bc4 {[%clk 0:02:01]} 14... b5 {[%clk 0:01:37.7]} 15. axb6 {[%clk 0:01:48.4]}
15... Nxb6 {[%clk 0:01:36.7]} 16. Ba2 {[%clk 0:01:48.7]} 16... Bb7 {[%clk
0:01:27.7]} 17. Rd1 {[%clk 0:01:48.7]} 17... Rac8 {[%clk 0:01:15]} 18. O-O
{[%clk 0:01:13.9]} 18... Nc4 {[%clk 0:00:49.2]} 19. Bxc4 {[%clk 0:00:43.4]}
19... Rxc4 {[%clk 0:00:48.3]} 20. Be5 {[%clk 0:00:43.1]} 20... Rd8 {[%clk
0:00:43.6]} 21. d6 {[%clk 0:00:39.7]} 21... exd6 {[%clk 0:00:38]} 22. Rxd6
{[%clk 0:00:38.7]} 22... Rxd6 {[%clk 0:00:36]} 23. Bxd6 {[%clk 0:00:39.2]} 23...
Bxf3 {[%clk 0:00:36.1]} 24. gxf3 {[%clk 0:00:39.2]} 24... Ne8 {[%clk 0:00:31.9]}
25. Bg3 {[%clk 0:00:26.4]} 25... Bxc3 {[%clk 0:00:25.9]} 26. bxc3 {[%clk
0:00:26.6]} 26... Rxc3 {[%clk 0:00:26.3]} 27. Ra1 {[%clk 0:00:23.6]} 27... Rc6
{[%clk 0:00:23.7]} 28. Kg2 {[%clk 0:00:20.2]} 28... f5 {[%clk 0:00:20.1]} 29.
Be5 {[%clk 0:00:19.7]} 29... Kf7 {[%clk 0:00:19.9]} 30. f4 {[%clk 0:00:19.7]}
30... Nf6 {[%clk 0:00:19.2]} 31. Rb1 {[%clk 0:00:17.9]} 31... Nd7 {[%clk
0:00:17.2]} 32. Rb7 {[%clk 0:00:17.4]} 32... Ke6 {[%clk 0:00:17.6]} 33. Bh8
{[%clk 0:00:16.3]} 33... Rc4 {[%clk 0:00:12.8]} 34. Ra7 {[%clk 0:00:13.8]} 34...
Ra4 {[%clk 0:00:11.5]} 35. Kg3 {[%clk 0:00:12.4]} 35... h6 {[%clk 0:00:11.4]}
36. h4 {[%clk 0:00:12.2]} 36... h5 {[%clk 0:00:10.8]} 37. Bg7 {[%clk 0:00:12]}
37... Nf6 {[%clk 0:00:10.5]} 38. f3 {[%clk 0:00:07.5]} 38... Nd5 {[%clk
0:00:08.9]} 39. Rb7 {[%clk 0:00:07]} 39... Rxf4 {[%clk 0:00:06.4]} 0-1

[Event "*** SCC Grand Prix: Titled Tuesday Blitz"]
[Site "Chess.com"]
[Date "2020.08.25"]
[Round "8"]
[White "Gareth-Bale11"]
[Black "AnonymousIM2023"]
[Result "0-1"]
[WhiteElo "2736"]
[BlackElo "2635"]
[TimeControl "180+1"]
[EndTime "11:36:47 PDT"]
[Termination "AnonymousIM2023 won by checkmate"]

1. d4 {[%clk 0:02:58]} 1... Nf6 {[%clk 0:02:59.7]} 2. c4 {[%clk 0:02:57.2]} 2...
c5 {[%clk 0:02:59.9]} 3. d5 {[%clk 0:02:57.5]} 3... e6 {[%clk 0:03:00.5]} 4. Nc3
{[%clk 0:02:57.9]} 4... exd5 {[%clk 0:03:01.4]} 5. cxd5 {[%clk 0:02:58.8]} 5...
d6 {[%clk 0:03:02.1]} 6. e4 {[%clk 0:02:58.3]} 6... g6 {[%clk 0:03:02.7]} 7. f4
{[%clk 0:02:53.4]} 7... Bg7 {[%clk 0:03:02.8]} 8. Bb5+ {[%clk 0:02:53]} 8...
Nfd7 {[%clk 0:03:03.3]} 9. Bd3 {[%clk 0:02:51.7]} 9... Qh4+ {[%clk 0:03:03.3]}
10. g3 {[%clk 0:02:52.3]} 10... Qe7 {[%clk 0:03:03.8]} 11. Nf3 {[%clk
0:02:52.6]} 11... Nb6 {[%clk 0:03:04]} 12. Kf2 {[%clk 0:02:52.9]} 12... Bg4
{[%clk 0:03:01.8]} 13. h3 {[%clk 0:02:48.2]} 13... Bxf3 {[%clk 0:03:01.6]} 14.
Qxf3 {[%clk 0:02:49.1]} 14... O-O {[%clk 0:03:02.2]} 15. Be3 {[%clk 0:02:45.3]}
15... Na6 {[%clk 0:03:01.9]} 16. Rae1 {[%clk 0:02:34.3]} 16... c4 {[%clk
0:02:54.7]} 17. Bb1 {[%clk 0:02:29.1]} 17... Nb4 {[%clk 0:02:52.7]} 18. Kg2
{[%clk 0:02:25.3]} 18... Rac8 {[%clk 0:02:23.6]} 19. Rd1 {[%clk 0:02:07.2]}
19... Rfe8 {[%clk 0:02:17.9]} 20. Rhe1 {[%clk 0:01:53.2]} 20... Qd7 {[%clk
0:02:14.8]} 21. a3 {[%clk 0:01:32.1]} 21... Nd3 {[%clk 0:02:11.4]} 22. Bxd3
{[%clk 0:01:31.8]} 22... cxd3 {[%clk 0:02:12.3]} 23. Rxd3 {[%clk 0:01:32.7]}
23... Na4 {[%clk 0:02:12.6]} 24. Nxa4 {[%clk 0:01:14.3]} 24... Qxa4 {[%clk
0:02:13.5]} 25. Bf2 {[%clk 0:01:07.4]} 25... Rc2 {[%clk 0:02:12.7]} 26. b4
{[%clk 0:01:02.9]} 26... Qb5 {[%clk 0:02:05.1]} 27. g4 {[%clk 0:00:46.6]} 27...
Qc4 {[%clk 0:02:00.7]} 28. Kg3 {[%clk 0:00:40.6]} 28... g5 {[%clk 0:01:19.7]}
29. fxg5 {[%clk 0:00:13.4]} 29... Be5+ {[%clk 0:01:19.2]} 30. Kg2 {[%clk
0:00:09.8]} 30... Bd4 {[%clk 0:01:19]} 31. Rf1 {[%clk 0:00:07]} 31... Bxf2
{[%clk 0:01:01.3]} 32. Rxf2 {[%clk 0:00:07]} 32... Rxf2+ {[%clk 0:01:01.6]} 33.
Kxf2 {[%clk 0:00:07.9]} 33... Rxe4 {[%clk 0:01:00.8]} 34. Kg3 {[%clk 0:00:08.3]}
34... Re8 {[%clk 0:00:52.1]} 35. h4 {[%clk 0:00:07.1]} 35... Qc1 {[%clk
0:00:46.3]} 36. Qf2 {[%clk 0:00:05]} 36... Qb1 {[%clk 0:00:28.8]} 37. Rf3 {[%clk
0:00:04.9]} 37... Re7 {[%clk 0:00:23.8]} 38. Rf4 {[%clk 0:00:04.7]} 38... Qd3+
{[%clk 0:00:22]} 39. Qf3 {[%clk 0:00:04.6]} 39... Re3 {[%clk 0:00:21.5]} 40. h5
{[%clk 0:00:03.9]} 40... Rxf3+ {[%clk 0:00:20.7]} 41. Rxf3 {[%clk 0:00:04.8]}
41... Qxd5 {[%clk 0:00:21.2]} 42. Rf5 {[%clk 0:00:05.7]} 42... Qd3+ {[%clk
0:00:20.9]} 43. Kf4 {[%clk 0:00:06.1]} 43... d5 {[%clk 0:00:18.8]} 44. Ke5
{[%clk 0:00:06.4]} 44... Qe4+ {[%clk 0:00:18.1]} 45. Kf6 {[%clk 0:00:06.8]}
45... Qe6# {[%clk 0:00:17.6]} 0-1

[Event "*** SCC Grand Prix: Titled Tuesday Blitz"]
[Site "Chess.com"]
[Date "2020.08.25"]
[Round "8"]
[White "Artem_Sadovsky"]
[Black "googlegoom"]
[Result "0-1"]
[WhiteElo "2551"]
[BlackElo "2460"]
[TimeControl "180+1"]
[EndTime "11:36:47 PDT"]
[Termination "googlegoom won by checkmate"]

1. Nf3 {[%clk 0:02:54.4]} 1... d5 {[%clk 0:02:58.3]} 2. c4 {[%clk 0:02:52.2]}
2... c6 {[%clk 0:02:58.3]} 3. b3 {[%clk 0:02:51.7]} 3... Nf6 {[%clk 0:02:58.4]}
4. Bb2 {[%clk 0:02:52]} 4... e6 {[%clk 0:02:59]} 5. g3 {[%clk 0:02:50.2]} 5...
Be7 {[%clk 0:02:58.9]} 6. Bg2 {[%clk 0:02:50.4]} 6... b6 {[%clk 0:02:59.4]} 7.
O-O {[%clk 0:02:50.3]} 7... Bb7 {[%clk 0:02:59.9]} 8. d3 {[%clk 0:02:49.8]} 8...
O-O {[%clk 0:02:58]} 9. Nbd2 {[%clk 0:02:49.7]} 9... Nbd7 {[%clk 0:02:58.2]} 10.
Qc2 {[%clk 0:02:49.4]} 10... Qc7 {[%clk 0:02:48.7]} 11. cxd5 {[%clk 0:02:46.4]}
11... Nxd5 {[%clk 0:02:47.3]} 12. Nc4 {[%clk 0:02:43.2]} 12... c5 {[%clk
0:02:43]} 13. Rad1 {[%clk 0:02:40.8]} 13... Rac8 {[%clk 0:02:40.8]} 14. d4
{[%clk 0:02:34.2]} 14... cxd4 {[%clk 0:02:19.9]} 15. Nxd4 {[%clk 0:02:35.1]}
15... Nb4 {[%clk 0:02:20]} 16. Qb1 {[%clk 0:02:22.1]} 16... Bxg2 {[%clk
0:02:17.2]} 17. Kxg2 {[%clk 0:02:23]} 17... Nf6 {[%clk 0:02:05.2]} 18. a3 {[%clk
0:02:14.8]} 18... Nc6 {[%clk 0:01:51.1]} 19. Nb5 {[%clk 0:02:14.2]} 19... Qb8
{[%clk 0:01:50.7]} 20. e4 {[%clk 0:02:08.3]} 20... a6 {[%clk 0:01:37]} 21. Nbd6
{[%clk 0:02:08.3]} 21... Rcd8 {[%clk 0:01:37]} 22. e5 {[%clk 0:02:01.6]} 22...
Nd5 {[%clk 0:01:36.9]} 23. Qe4 {[%clk 0:01:48]} 23... b5 {[%clk 0:01:30.4]} 24.
Ne3 {[%clk 0:01:38.9]} 24... Bxd6 {[%clk 0:01:25]} 25. exd6 {[%clk 0:01:32]}
25... Nxe3+ {[%clk 0:00:57.1]} 26. Qxe3 {[%clk 0:01:29.5]} 26... Rxd6 {[%clk
0:00:54.2]} 27. Qc5 {[%clk 0:00:56.6]} 27... Rxd1 {[%clk 0:00:35.3]} 28. Rxd1
{[%clk 0:00:57.5]} 28... Qb7 {[%clk 0:00:36]} 29. Kg1 {[%clk 0:00:52.9]} 29...
h6 {[%clk 0:00:17]} 30. Rd6 {[%clk 0:00:45.9]} 30... Rc8 {[%clk 0:00:16.4]} 31.
Qc3 {[%clk 0:00:35.9]} 31... e5 {[%clk 0:00:14.3]} 32. Qf3 {[%clk 0:00:29.3]}
32... f6 {[%clk 0:00:12.2]} 33. Qd5+ {[%clk 0:00:25.4]} 33... Kh8 {[%clk
0:00:12.7]} 34. Rd7 {[%clk 0:00:24.3]} 34... Rc7 {[%clk 0:00:10.3]} 35. Rd6
{[%clk 0:00:16.8]} 35... Nd4 {[%clk 0:00:06.8]} 36. Rd8+ {[%clk 0:00:14.7]}
36... Kh7 {[%clk 0:00:06.7]} 37. Qg8+ {[%clk 0:00:15.6]} 37... Kg6 {[%clk
0:00:07.1]} 38. Qe8+ {[%clk 0:00:14]} 38... Kg5 {[%clk 0:00:06.5]} 39. h4+
{[%clk 0:00:12]} 39... Kg4 {[%clk 0:00:06.5]} 40. Qg6+ {[%clk 0:00:11.3]} 40...
Kh3 {[%clk 0:00:06.9]} 41. Rxd4 {[%clk 0:00:07.5]} 41... Qg2# {[%clk 0:00:06.8]}
0-1

[Event "*** SCC Grand Prix: Titled Tuesday Blitz"]
[Site "Chess.com"]
[Date "2020.08.25"]
[Round "8"]
[White "mfwagnerpeixoto"]
[Black "frequentblunders"]
[Result "0-1"]
[WhiteElo "2214"]
[BlackElo "2083"]
[TimeControl "180+1"]
[EndTime "11:36:47 PDT"]
[Termination "frequentblunders won on time"]

1. d4 {[%clk 0:03:00.9]} 1... e6 {[%clk 0:03:00.9]} 2. c4 {[%clk 0:03:00.3]}
2... c5 {[%clk 0:03:01.5]} 3. Nf3 {[%clk 0:02:54.5]} 3... Nf6 {[%clk 0:03:01.5]}
4. Nc3 {[%clk 0:02:53.4]} 4... cxd4 {[%clk 0:02:57.1]} 5. Nxd4 {[%clk
0:02:54.3]} 5... Bb4 {[%clk 0:02:55.8]} 6. g3 {[%clk 0:02:38.9]} 6... Bxc3+
{[%clk 0:02:55.3]} 7. bxc3 {[%clk 0:02:38.3]} 7... Nc6 {[%clk 0:02:55.2]} 8. Bg2
{[%clk 0:02:34.4]} 8... O-O {[%clk 0:02:54.9]} 9. O-O {[%clk 0:02:25]} 9... Qa5
{[%clk 0:02:52]} 10. Nb5 {[%clk 0:02:16.7]} 10... a6 {[%clk 0:02:47.7]} 11. Nd6
{[%clk 0:02:15]} 11... Qxc3 {[%clk 0:02:45.7]} 12. Bg5 {[%clk 0:02:14.7]} 12...
h6 {[%clk 0:02:16.8]} 13. Rc1 {[%clk 0:02:09.5]} 13... Qe5 {[%clk 0:02:06.9]}
14. Bf4 {[%clk 0:02:05]} 14... Qc5 {[%clk 0:01:37.9]} 15. e4 {[%clk 0:01:51.6]}
15... e5 {[%clk 0:01:16.4]} 16. Be3 {[%clk 0:01:50.3]} 16... Nd4 {[%clk
0:01:16.4]} 17. Nf5 {[%clk 0:01:49.8]} 17... d6 {[%clk 0:00:49.9]} 18. Nxd4
{[%clk 0:01:48.9]} 18... exd4 {[%clk 0:00:49.5]} 19. Bxd4 {[%clk 0:01:49.8]}
19... Qg5 {[%clk 0:00:47.1]} 20. f4 {[%clk 0:01:42.3]} 20... Qg6 {[%clk
0:00:47]} 21. Ba1 {[%clk 0:01:22.7]} 21... Nxe4 {[%clk 0:00:42.6]} 22. Qc2
{[%clk 0:00:56.7]} 22... Bf5 {[%clk 0:00:39.8]} 23. Qb2 {[%clk 0:00:38.9]} 23...
Rac8 {[%clk 0:00:38.1]} 24. Qxb7 {[%clk 0:00:30.5]} 24... Nc5 {[%clk 0:00:32.1]}
25. Qd5 {[%clk 0:00:29]} 25... Be4 {[%clk 0:00:29.6]} 26. Bxe4 {[%clk
0:00:27.4]} 26... Qxe4 {[%clk 0:00:30.5]} 27. Rfd1 {[%clk 0:00:20.5]} 27... Qe3+
{[%clk 0:00:24]} 28. Kh1 {[%clk 0:00:18.9]} 28... Ne4 {[%clk 0:00:22.1]} 29. Rf1
{[%clk 0:00:17.3]} 29... Nf2+ {[%clk 0:00:20.3]} 30. Kg2 {[%clk 0:00:17]} 30...
Nd3 {[%clk 0:00:18.9]} 31. Rcd1 {[%clk 0:00:14]} 31... Qe2+ {[%clk 0:00:18.5]}
32. Kh1 {[%clk 0:00:12.3]} 32... Nf2+ {[%clk 0:00:17.2]} 33. Rxf2 {[%clk
0:00:12.3]} 33... Qxf2 {[%clk 0:00:17.5]} 34. Bd4 {[%clk 0:00:09.9]} 34... Qxa2
{[%clk 0:00:14.3]} 35. Bxg7 {[%clk 0:00:03.2]} 35... Kxg7 {[%clk 0:00:12.4]} 36.
f5 {[%clk 0:00:03.5]} 36... Qxc4 {[%clk 0:00:11.3]} 37. f6+ {[%clk 0:00:03.2]}
37... Kh8 {[%clk 0:00:09.7]} 38. Qd2 {[%clk 0:00:01.3]} 38... Qc6+ {[%clk
0:00:09.2]} 39. Kg1 {[%clk 0:00:01]} 39... Qc5+ {[%clk 0:00:09]} 40. Kf1 {[%clk
0:00:01.6]} 40... Kh7 {[%clk 0:00:08.7]} 0-1

[Event "*** SCC Grand Prix: Titled Tuesday Blitz"]
[Site "Chess.com"]
[Date "2020.08.25"]
[Round "8"]
[White "Beca95"]
[Black "albi1999"]
[Result "1/2-1/2"]
[WhiteElo "2869"]
[BlackElo "2575"]
[TimeControl "180+1"]
[EndTime "11:36:48 PDT"]
[Termination "Game drawn - insufficient material"]

1. d4 {[%clk 0:03:00.9]} 1... d5 {[%clk 0:02:59.2]} 2. c4 {[%clk 0:03:01.2]}
2... e6 {[%clk 0:02:54.6]} 3. Nf3 {[%clk 0:03:01]} 3... Nf6 {[%clk 0:02:53.7]}
4. Nc3 {[%clk 0:03:00.6]} 4... c5 {[%clk 0:02:51.6]} 5. cxd5 {[%clk 0:02:59.8]}
5... Nxd5 {[%clk 0:02:52.5]} 6. e4 {[%clk 0:02:59.1]} 6... Nxc3 {[%clk
0:02:52.7]} 7. bxc3 {[%clk 0:03:00]} 7... cxd4 {[%clk 0:02:51.2]} 8. cxd4 {[%clk
0:03:00.9]} 8... Bb4+ {[%clk 0:02:51.4]} 9. Bd2 {[%clk 0:03:01.2]} 9... Bxd2+
{[%clk 0:02:52]} 10. Qxd2 {[%clk 0:03:02.1]} 10... O-O {[%clk 0:02:52.5]} 11.
Bc4 {[%clk 0:03:02.6]} 11... Nd7 {[%clk 0:02:52.3]} 12. O-O {[%clk 0:03:02.9]}
12... b6 {[%clk 0:02:52.9]} 13. Rfe1 {[%clk 0:03:03.4]} 13... Bb7 {[%clk
0:02:53.3]} 14. Rad1 {[%clk 0:03:04]} 14... Rc8 {[%clk 0:02:53.2]} 15. Bb3
{[%clk 0:03:04.2]} 15... Qf6 {[%clk 0:02:50.4]} 16. h4 {[%clk 0:03:01.7]} 16...
Rfd8 {[%clk 0:02:49.4]} 17. Qe3 {[%clk 0:02:57.4]} 17... h6 {[%clk 0:02:46.8]}
18. g4 {[%clk 0:02:52.1]} 18... Qg6 {[%clk 0:02:39.7]} 19. Qf4 {[%clk
0:02:52.2]} 19... Nf6 {[%clk 0:02:37.3]} 20. Ne5 {[%clk 0:02:51.3]} 20... Qh7
{[%clk 0:02:29.2]} 21. g5 {[%clk 0:02:51.4]} 21... hxg5 {[%clk 0:02:28.6]} 22.
hxg5 {[%clk 0:02:50.9]} 22... Bxe4 {[%clk 0:02:18.4]} 23. f3 {[%clk 0:02:51]}
23... Bf5 {[%clk 0:01:38.3]} 24. gxf6 {[%clk 0:02:46.9]} 24... gxf6 {[%clk
0:01:39.2]} 25. Ng4 {[%clk 0:02:46.2]} 25... Qg7 {[%clk 0:01:34.2]} 26. Qh6
{[%clk 0:02:42.2]} 26... Rc3 {[%clk 0:01:26.5]} 27. Qxg7+ {[%clk 0:02:36.9]}
27... Kxg7 {[%clk 0:01:27.4]} 28. Kf2 {[%clk 0:02:36.4]} 28... Rh8 {[%clk
0:01:08.1]} 29. Rh1 {[%clk 0:02:33.7]} 29... Rxh1 {[%clk 0:01:06.8]} 30. Rxh1
{[%clk 0:02:34.6]} 30... Bxg4 {[%clk 0:00:56.1]} 31. fxg4 {[%clk 0:02:33.6]}
31... Rd3 {[%clk 0:00:56.6]} 32. d5 {[%clk 0:02:33.3]} 32... exd5 {[%clk
0:00:56.6]} 33. Rd1 {[%clk 0:02:31.3]} 33... Rxd1 {[%clk 0:00:55.9]} 34. Bxd1
{[%clk 0:02:30.6]} 34... f5 {[%clk 0:00:54.6]} 35. gxf5 {[%clk 0:02:23.3]} 35...
Kf6 {[%clk 0:00:53.9]} 36. Bc2 {[%clk 0:02:23.6]} 36... Ke5 {[%clk 0:00:54]} 37.
Ke3 {[%clk 0:02:23.7]} 37... b5 {[%clk 0:00:51.5]} 38. Bd3 {[%clk 0:02:23.4]}
38... b4 {[%clk 0:00:51]} 39. Bc2 {[%clk 0:02:11.4]} 39... f6 {[%clk 0:00:48]}
40. Kd3 {[%clk 0:02:09.4]} 40... a5 {[%clk 0:00:37.2]} 41. Bb3 {[%clk
0:02:09.2]} 41... Kxf5 {[%clk 0:00:36.3]} 42. Kd4 {[%clk 0:02:09.5]} 42... Ke6
{[%clk 0:00:25.3]} 43. Kc5 {[%clk 0:02:08]} 43... Ke5 {[%clk 0:00:21.9]} 44. Kb5
{[%clk 0:01:29.4]} 44... Kd4 {[%clk 0:00:16]} 45. Kxa5 {[%clk 0:01:29.4]} 45...
Kc5 {[%clk 0:00:16.4]} 46. Bd1 {[%clk 0:01:14.5]} 46... f5 {[%clk 0:00:12.3]}
47. Ka4 {[%clk 0:01:13.9]} 47... Kc4 {[%clk 0:00:11.5]} 48. Bb3+ {[%clk
0:01:11.8]} 48... Kc5 {[%clk 0:00:11.9]} 49. Bc2 {[%clk 0:01:08.2]} 49... Kc4
{[%clk 0:00:12.2]} 50. Bxf5 {[%clk 0:01:06.5]} 50... d4 {[%clk 0:00:12.6]} 51.
Bc2 {[%clk 0:00:57.5]} 51... Kc3 {[%clk 0:00:11.8]} 52. Bb3 {[%clk 0:00:50.9]}
52... d3 {[%clk 0:00:10.1]} 53. Kb5 {[%clk 0:00:42.5]} 53... d2 {[%clk
0:00:07.8]} 54. Ka4 {[%clk 0:00:42.7]} 54... Kb2 {[%clk 0:00:07.4]} 55. Kxb4
{[%clk 0:00:43]} 55... d1=Q {[%clk 0:00:07.7]} 56. Bxd1 {[%clk 0:00:42.9]} 56...
Kxa2 {[%clk 0:00:08.2]} 1/2-1/2

[Event "*** SCC Grand Prix: Titled Tuesday Blitz"]
[Site "Chess.com"]
[Date "2020.08.25"]
[Round "8"]
[White "Logman74"]
[Black "paulrusan"]
[Result "0-1"]
[WhiteElo "2376"]
[BlackElo "2222"]
[TimeControl "180+1"]
[EndTime "11:36:49 PDT"]
[Termination "paulrusan won on time"]

1. d4 {[%clk 0:03:00.9]} 1... Nf6 {[%clk 0:02:59.4]} 2. c4 {[%clk 0:03:00.5]}
2... g6 {[%clk 0:02:59.7]} 3. Nc3 {[%clk 0:03:00.8]} 3... Bg7 {[%clk 0:02:59.9]}
4. d5 {[%clk 0:03:00.7]} 4... O-O {[%clk 0:02:58.6]} 5. Nf3 {[%clk 0:03:00.7]}
5... d6 {[%clk 0:02:57.3]} 6. e4 {[%clk 0:03:00.5]} 6... Na6 {[%clk 0:02:52.6]}
7. Be2 {[%clk 0:02:59.8]} 7... Nc5 {[%clk 0:02:52.5]} 8. Qc2 {[%clk 0:02:59]}
8... a5 {[%clk 0:02:52.2]} 9. O-O {[%clk 0:02:58.6]} 9... e5 {[%clk 0:02:50.6]}
10. Be3 {[%clk 0:02:57.4]} 10... b6 {[%clk 0:02:47.9]} 11. Nd2 {[%clk
0:02:55.7]} 11... Bd7 {[%clk 0:02:47.1]} 12. b3 {[%clk 0:02:52.3]} 12... Nh5
{[%clk 0:02:46.1]} 13. Bxh5 {[%clk 0:02:49.9]} 13... gxh5 {[%clk 0:02:46.2]} 14.
a3 {[%clk 0:02:38.2]} 14... f5 {[%clk 0:02:39.7]} 15. Bxc5 {[%clk 0:02:37.7]}
15... bxc5 {[%clk 0:02:38.3]} 16. exf5 {[%clk 0:02:38]} 16... Bxf5 {[%clk
0:02:37.9]} 17. Nde4 {[%clk 0:02:37.9]} 17... Rb8 {[%clk 0:02:33]} 18. f3 {[%clk
0:02:31.3]} 18... h4 {[%clk 0:02:30.2]} 19. Nb5 {[%clk 0:02:26.5]} 19... Bh6
{[%clk 0:02:27.7]} 20. Rae1 {[%clk 0:02:24.3]} 20... Kh8 {[%clk 0:02:24.3]} 21.
a4 {[%clk 0:02:22.2]} 21... Rg8 {[%clk 0:02:20]} 22. Qc3 {[%clk 0:02:18.8]}
22... Bf4 {[%clk 0:02:18.2]} 23. Kh1 {[%clk 0:02:15]} 23... Qe7 {[%clk 0:02:13]}
24. Na7 {[%clk 0:02:06.7]} 24... Rb4 {[%clk 0:02:07.2]} 25. Nc6 {[%clk
0:01:55.3]} 25... Qg7 {[%clk 0:02:07]} 26. Re2 {[%clk 0:01:54.3]} 26... Bxe4
{[%clk 0:01:55.6]} 27. fxe4 {[%clk 0:01:51.5]} 27... h5 {[%clk 0:01:29.4]} 28.
Nxa5 {[%clk 0:01:39]} 28... Qg4 {[%clk 0:01:24.3]} 29. Qf3 {[%clk 0:01:34.4]}
29... h3 {[%clk 0:01:21]} 30. Qxg4 {[%clk 0:01:31.5]} 30... hxg4 {[%clk
0:01:20.6]} 31. gxh3 {[%clk 0:01:26.9]} 31... g3 {[%clk 0:01:13.8]} 32. hxg3
{[%clk 0:01:24.4]} 32... Rxg3 {[%clk 0:01:13.8]} 33. Rg1 {[%clk 0:01:09.3]}
33... Rxh3+ {[%clk 0:01:13.1]} 34. Kg2 {[%clk 0:01:08.7]} 34... Rg3+ {[%clk
0:01:13.3]} 35. Kf2 {[%clk 0:01:07.9]} 35... Rxg1 {[%clk 0:01:08.3]} 36. Kxg1
{[%clk 0:01:06.7]} 36... Rb8 {[%clk 0:01:06.6]} 37. Rg2 {[%clk 0:01:05]} 37...
Be3+ {[%clk 0:01:04.1]} 38. Kf1 {[%clk 0:01:04]} 38... Bd4 {[%clk 0:01:04.2]}
39. Rg3 {[%clk 0:01:02.4]} 39... Rf8+ {[%clk 0:01:01.1]} 40. Ke2 {[%clk
0:00:59.6]} 40... Rf2+ {[%clk 0:01:01.1]} 41. Ke1 {[%clk 0:00:59.3]} 41... Rb2
{[%clk 0:00:58.8]} 42. Nc6 {[%clk 0:00:58.6]} 42... Bf2+ {[%clk 0:00:58.3]} 43.
Kd1 {[%clk 0:00:40.9]} 43... Bxg3 {[%clk 0:00:58.3]} 44. a5 {[%clk 0:00:40.4]}
44... Rxb3 {[%clk 0:00:54.5]} 45. a6 {[%clk 0:00:39.4]} 45... Ra3 {[%clk
0:00:53.9]} 46. a7 {[%clk 0:00:39.2]} 46... Kg7 {[%clk 0:00:50.6]} 47. Kc2
{[%clk 0:00:38.7]} 47... Be1 {[%clk 0:00:45.3]} 48. Kb2 {[%clk 0:00:36.6]} 48...
Ra6 {[%clk 0:00:45.1]} 49. Kb3 {[%clk 0:00:36.6]} 49... Ba5 {[%clk 0:00:43.8]}
50. Ka4 {[%clk 0:00:24.5]} 50... Bb6+ {[%clk 0:00:43.9]} 51. Kb5 {[%clk
0:00:24.8]} 51... Rxa7 {[%clk 0:00:44.3]} 52. Nxa7 {[%clk 0:00:20.3]} 52... Bxa7
{[%clk 0:00:44]} 53. Kc6 {[%clk 0:00:19.2]} 53... Bb6 {[%clk 0:00:44.2]} 0-1